fUSD/lending_fUSD_20260617
["ID","MTS","AMOUNT","RATE_DAILY","PERIOD"]
[425260909,1781639446000,-575.479373,0.00024658,2]
[425260908,1781639446000,-575.479373,0.00024658,2]
[425260918,1781639446000,-151.0,0.00024658,2]
[425260900,1781639446000,-575.479373,0.00024658,2]
[425260889,1781639446000,-151.0,0.00024658,2]
[425260924,1781639446000,-1228.71,0.00024658,2]
[425260886,1781639446000,-151.0,0.00024658,2]
[425260917,1781639446000,-151.0,0.00024658,2]
[425260864,1781639446000,-151.0,0.00024178,2]
[425260869,1781639446000,-1000.0,0.00024658,2]
[425260863,1781639446000,-217.15233878,0.00024178,2]
[425260868,1781639446000,-2319.72410669,0.00024639,2]
[425260866,1781639446000,-151.0,0.00024639,2]
[425260867,1781639446000,-200.0,0.00024639,2]
[425260865,1781639446000,-27901.0,0.000245,2]
[425260870,1781639446000,-187.5,0.00024658,2]
[425260880,1781639446000,-151.0,0.00024658,2]
[425260879,1781639446000,-151.0,0.00024658,2]
[425260878,1781639446000,-151.0,0.00024658,2]
[425260871,1781639446000,-151.0,0.00024658,2]
[425260873,1781639446000,-151.0,0.00024658,2]
[425260872,1781639446000,-151.0,0.00024658,2]
[425260875,1781639446000,-151.0,0.00024658,2]
[425260877,1781639446000,-151.0,0.00024658,2]
[425260876,1781639446000,-151.0,0.00024658,2]
[425260874,1781639446000,-151.0,0.00024658,2]
[425260881,1781639446000,-151.0,0.00024658,2]
[425260883,1781639446000,-151.0,0.00024658,2]
[425260887,1781639446000,-151.0,0.00024658,2]
[425260885,1781639446000,-151.0,0.00024658,2]
[425260890,1781639446000,-151.0,0.00024658,2]
[425260888,1781639446000,-151.0,0.00024658,2]
[425260884,1781639446000,-151.0,0.00024658,2]
[425260922,1781639446000,-151.0,0.00024658,2]
[425260934,1781639446000,-10272.10520532,0.00024726,2]
[425260914,1781639446000,-151.0,0.00024658,2]
[425260952,1781639446000,-201.0,0.00025,2]
[425260950,1781639446000,-151.0,0.00025,2]
[425260949,1781639446000,-151.0,0.00025,2]
[425260951,1781639446000,-729.0,0.00025,2]
[425260957,1781639446000,-684.52174,0.00025,2]
[425260959,1781639446000,-684.52174,0.00025,2]
[425260954,1781639446000,-151.0,0.00025,2]
[425260955,1781639446000,-215.0,0.00025,2]
[425260958,1781639446000,-684.52174,0.00025,2]
[425260956,1781639446000,-684.52174,0.00025,2]
[425260971,1781639446000,-151.0,0.00025,2]
[425260972,1781639446000,-151.0,0.00025,2]
[425260962,1781639446000,-151.0,0.00025,2]
[425260963,1781639446000,-151.0,0.00025,2]
[425260964,1781639446000,-151.0,0.00025,2]
[425260960,1781639446000,-151.0,0.00025,2]
[425260966,1781639446000,-151.0,0.00025,2]
[425260967,1781639446000,-2257.764109,0.00025,2]
[425260969,1781639446000,-2257.764109,0.00025,2]
[425260965,1781639446000,-151.0,0.00025,2]
[425260970,1781639446000,-2257.764109,0.00025,2]
[425260968,1781639446000,-2257.764109,0.00025,2]
[425260975,1781639446000,-362.718963,0.00025,2]
[425260973,1781639446000,-150.0,0.00025,2]
[425260923,1781639446000,-193.097944,0.00024658,2]
[425260953,1781639446000,-399.0,0.00025,2]
[425260946,1781639446000,-333438.73671337,0.00025,2]
[425260961,1781639446000,-151.0,0.00025,2]
[425260945,1781639446000,-300.0,0.00024999,10]
[425260944,1781639446000,-300.0,0.00024999,10]
[425260920,1781639446000,-151.0,0.00024658,2]
[425260921,1781639446000,-151.0,0.00024658,2]
[425260915,1781639446000,-151.0,0.00024658,2]
[425260925,1781639446000,-500.0,0.00024663,2]
[425260919,1781639446000,-151.0,0.00024658,2]
[425260926,1781639446000,-287.43,0.00024669,7]
[425260927,1781639446000,-150.0,0.0002468,2]
[425260930,1781639446000,-154.51081299,0.00024726,2]
[425260974,1781639446000,-150.0,0.00025,2]
[425260931,1781639446000,-155.09781746,0.00024726,2]
[425260929,1781639446000,-578.20924308,0.00024726,2]
[425260933,1781639446000,-201.93286098,0.00024726,2]
[425260928,1781639446000,-150.0,0.0002468,2]
[425260932,1781639446000,-225.18697532,0.00024726,2]
[425260947,1781639446000,-451.0,0.00025,2]
[425260941,1781639446000,-151.0,0.00024997,7]
[425260937,1781639446000,-151.0,0.00024726,2]
[425260942,1781639446000,-300.0,0.00024999,10]
[425260940,1781639446000,-770.0,0.00024859,2]
[425260943,1781639446000,-300.0,0.00024999,10]
[425260916,1781639446000,-151.0,0.00024658,2]
[425260938,1781639446000,-225.18697532,0.00024726,2]
[425260936,1781639446000,-225.18697532,0.00024726,2]
[425260935,1781639446000,-225.18697532,0.00024726,2]
[425260948,1781639446000,-151.0,0.00025,2]
[425261017,1781639447000,-209.40437684,0.00025272,2]
[425261012,1781639447000,-206.0,0.00025073,2]
[425261013,1781639447000,-151.0,0.00025187,2]
[425261014,1781639447000,-200.0,0.00025187,2]
[425261011,1781639447000,-252.92184,0.00025,2]
[425261016,1781639447000,-5528.0,0.000252,3]
[425261010,1781639447000,-252.92184,0.00025,2]
[425261007,1781639447000,-347.53,0.00025,2]
[425261008,1781639447000,-347.53,0.00025,2]
[425261006,1781639447000,-347.53,0.00025,2]
[425261015,1781639447000,-2405.55389863,0.00025187,2]
[425261009,1781639447000,-252.92184,0.00025,2]
[425261028,1781639447000,-151.0,0.00025274,2]
[425261018,1781639447000,-151.0,0.00025273,2]
[425261020,1781639447000,-695.39793187,0.00025273,2]
[425261021,1781639447000,-599.60298507,0.00025274,2]
[425261027,1781639447000,-233.5188934,0.00025274,2]
[425261022,1781639447000,-154.51081299,0.00025274,2]
[425261024,1781639447000,-209.40437684,0.00025274,2]
[425261025,1781639447000,-3610.00685391,0.00025274,2]
[425261026,1781639447000,-233.5188934,0.00025274,2]
[425261023,1781639447000,-233.5188934,0.00025274,2]
[425261029,1781639447000,-233.5188934,0.00025274,2]
[425260997,1781639447000,-252.92184,0.00025,2]
[425261019,1781639447000,-599.60298507,0.00025273,2]
[425261003,1781639447000,-347.53,0.00025,2]
[425260977,1781639447000,-150.964,0.00025,2]
[425261005,1781639447000,-347.53,0.00025,2]
[425261032,1781639447000,-6078.0,0.00025657,2]
[425260976,1781639447000,-362.718963,0.00025,2]
[425260980,1781639447000,-362.718963,0.00025,2]
[425260984,1781639447000,-237.964127,0.00025,2]
[425260978,1781639447000,-151.0,0.00025,2]
[425260981,1781639447000,-237.964127,0.00025,2]
[425260982,1781639447000,-237.964127,0.00025,2]
[425260983,1781639447000,-237.964127,0.00025,2]
[425260979,1781639447000,-362.718963,0.00025,2]
[425260986,1781639447000,-575.479373,0.00025,2]
[425260985,1781639447000,-151.0,0.00025,2]
[425260987,1781639447000,-575.479373,0.00025,2]
[425261004,1781639447000,-347.53,0.00025,2]
[425260988,1781639447000,-575.479373,0.00025,2]
[425260991,1781639447000,-151.0,0.00025,2]
[425260995,1781639447000,-252.92184,0.00025,2]
[425260993,1781639447000,-2000.0,0.00025,7]
[425260994,1781639447000,-252.92184,0.00025,2]
[425260990,1781639447000,-151.0,0.00025,2]
[425260992,1781639447000,-151.0,0.00025,2]
[425260998,1781639447000,-347.53,0.00025,2]
[425260996,1781639447000,-252.92184,0.00025,2]
[425261001,1781639447000,-347.53,0.00025,2]
[425260999,1781639447000,-347.53,0.00025,2]
[425261000,1781639447000,-347.53,0.00025,2]
[425261002,1781639447000,-252.92184,0.00025,2]
[425260989,1781639447000,-575.479369,0.00025,2]
[425261030,1781639447000,-500.0,0.00025403,2]
[425261045,1781639447000,-242.15909246,0.00025822,2]
[425261031,1781639447000,-1000.0,0.000255,2]
[425261067,1781639447000,-151.0,0.0002637,2]
[425261069,1781639447000,-975.644298,0.00026384,2]
[425261066,1781639447000,-251.11897888,0.0002637,2]
[425261065,1781639447000,-232.86425661,0.0002637,2]
[425261068,1781639447000,-251.11897888,0.0002637,2]
[425261071,1781639447000,-975.644298,0.00026384,2]
[425261070,1781639447000,-975.644298,0.00026384,2]
[425261073,1781639447000,-975.644298,0.00026384,2]
[425261075,1781639447000,-975.644298,0.00026384,2]
[425261064,1781639447000,-225.18697532,0.0002637,2]
[425261072,1781639447000,-975.644298,0.00026384,2]
[425261035,1781639447000,-2494.55939288,0.00025735,2]
[425261080,1781639447000,-975.644298,0.00026384,2]
[425261077,1781639447000,-975.644298,0.00026384,2]
[425261076,1781639447000,-975.644298,0.00026384,2]
[425261083,1781639447000,-288.396368,0.00026764,7]
[425261078,1781639447000,-975.644298,0.00026384,2]
[425261085,1781639447000,-151.0,0.00026831,2]
[425261086,1781639447000,-200.0,0.00026831,2]
[425261081,1781639447000,-152.0,0.00026483,3]
[425261082,1781639447000,-217.15233878,0.00026641,2]
[425261079,1781639447000,-975.644298,0.00026384,2]
[425261084,1781639447000,-1627.47,0.000268,7]
[425261087,1781639447000,-2682.57183977,0.00026831,2]
[425261088,1781639447000,-154.51081299,0.00026918,2]
[425261063,1781639447000,-251.11897888,0.0002637,2]
[425261062,1781639447000,-154.51081299,0.0002637,2]
[425261074,1781639447000,-975.644298,0.00026384,2]
[425261060,1781639447000,-2586.85809042,0.00026283,2]
[425261061,1781639447000,-542.74990657,0.0002637,2]
[425261034,1781639447000,-200.0,0.00025735,2]
[425261033,1781639447000,-151.0,0.00025735,2]
[425261036,1781639447000,-2128.94,0.00025786,2]
[425261037,1781639447000,-923.86,0.00025786,2]
[425261038,1781639447000,-1291.03,0.00025786,2]
[425261039,1781639447000,-42209.59,0.00025786,2]
[425261041,1781639447000,-621.78829552,0.00025822,2]
[425261047,1781639447000,-151.0,0.00025822,2]
[425261044,1781639447000,-217.15233878,0.00025822,2]
[425261040,1781639447000,-207.49,0.0002582,2]
[425261048,1781639447000,-242.15909246,0.00025822,2]
[425261042,1781639447000,-154.51081299,0.00025822,2]
[425261046,1781639447000,-242.15909246,0.00025822,2]
[425261043,1781639447000,-242.15909246,0.00025822,2]
[425261055,1781639447000,-174.74,0.00026027,7]
[425261059,1781639447000,-200.0,0.00026283,2]
[425261058,1781639447000,-151.0,0.00026283,2]
[425261053,1781639447000,-151.0,0.00026,2]
[425261057,1781639447000,-285.0,0.00026194,7]
[425261054,1781639447000,-151.0,0.00026,2]
[425261052,1781639447000,-550.0,0.00026,2]
[425261051,1781639447000,-27490.47687194,0.00026,10]
[425261050,1781639447000,-962.0,0.00025999,2]
[425261049,1781639447000,-5528.0,0.000259,5]
[425261056,1781639447000,-500.0,0.00026165,2]
[425261117,1781639448000,-191.38030484,0.00027084,7]
[425261131,1781639448000,-2781.82699784,0.00027379,2]
[425261127,1781639448000,-1111.90834699,0.0002735,2]
[425261126,1781639448000,-287.43,0.00027337,7]
[425261124,1781639448000,-593.0,0.00027137,2]
[425261121,1781639448000,-194.94333339,0.00027084,7]
[425261125,1781639448000,-962.0,0.0002714,5]
[425261123,1781639448000,-205.25204961,0.00027084,7]
[425261118,1781639448000,-189.97214289,0.00027084,7]
[425261115,1781639448000,-182.84438982,0.00027077,7]
[425261122,1781639448000,-184.7497939,0.00027084,7]
[425261129,1781639448000,-151.0,0.00027379,2]
[425261144,1781639448000,-300.0,0.00027397,2]
[425261133,1781639448000,-4533.68641657,0.0002739,7]
[425261132,1781639448000,-5406.9,0.0002738,2]
[425261134,1781639448000,-300.0,0.00027396,10]
[425261139,1781639448000,-300.0,0.00027397,2]
[425261138,1781639448000,-500.0,0.00027397,2]
[425261143,1781639448000,-300.0,0.00027397,2]
[425261135,1781639448000,-1161.21,0.00027397,7]
[425261140,1781639448000,-300.0,0.00027397,2]
[425261136,1781639448000,-1171.76,0.00027397,7]
[425261137,1781639448000,-1142.41,0.00027397,7]
[425261141,1781639448000,-300.0,0.00027397,2]
[425261142,1781639448000,-300.0,0.00027397,2]
[425261128,1781639448000,-394.0,0.00027365,7]
[425261114,1781639448000,-165.98059186,0.00027077,7]
[425261145,1781639448000,-300.0,0.00027397,2]
[425261120,1781639448000,-157.69627635,0.00027084,7]
[425261090,1781639448000,-233.5188934,0.00026918,2]
[425261093,1781639448000,-350.6171274,0.00026918,2]
[425261091,1781639448000,-260.4103811,0.00026918,2]
[425261094,1781639448000,-500.0,0.0002695,2]
[425261096,1781639448000,-198.95747713,0.00027077,7]
[425261092,1781639448000,-151.0,0.00026918,2]
[425261089,1781639448000,-260.4103811,0.00026918,2]
[425261097,1781639448000,-151.61614492,0.00027077,2]
[425261095,1781639448000,-173.0,0.00027,7]
[425261099,1781639448000,-168.39634781,0.00027077,7]
[425261098,1781639448000,-175.03420345,0.00027077,7]
[425261101,1781639448000,-188.20167743,0.00027077,7]
[425261116,1781639448000,-165.645538,0.00027084,7]
[425261102,1781639448000,-191.39563008,0.00027077,7]
[425261103,1781639448000,-190.50353867,0.00027077,7]
[425261106,1781639448000,-190.00090801,0.00027077,7]
[425261108,1781639448000,-159.17085174,0.00027077,7]
[425261105,1781639448000,-150.60622776,0.00027077,7]
[425261104,1781639448000,-182.80968249,0.00027077,7]
[425261107,1781639448000,-196.73607187,0.00027077,7]
[425261109,1781639448000,-162.95240884,0.00027077,7]
[425261113,1781639448000,-150.25232904,0.00027077,7]
[425261110,1781639448000,-209.81153343,0.00027077,7]
[425261111,1781639448000,-175.32243617,0.00027077,7]
[425261112,1781639448000,-162.61127238,0.00027077,5]
[425261119,1781639448000,-154.86830088,0.00027084,7]
[425261100,1781639448000,-163.56990276,0.00027077,7]
[425261147,1781639448000,-175.65698095,0.00027397,2]
[425261130,1781639448000,-200.0,0.00027379,2]
[425261153,1781639448000,-502.58377949,0.00027397,15]
[425261178,1781639448000,-1000.0,0.00027397,2]
[425261181,1781639448000,-1000.0,0.00027397,2]
[425261182,1781639448000,-1000.0,0.00027397,2]
[425261185,1781639448000,-1000.0,0.00027397,2]
[425261186,1781639448000,-1000.0,0.00027397,2]
[425261187,1781639448000,-1000.0,0.00027397,2]
[425261188,1781639448000,-1000.0,0.00027397,2]
[425261183,1781639448000,-1000.0,0.00027397,2]
[425261189,1781639448000,-1000.0,0.00027397,2]
[425261184,1781639448000,-1000.0,0.00027397,2]
[425261191,1781639448000,-1000.0,0.00027397,2]
[425261192,1781639448000,-1000.0,0.00027397,2]
[425261179,1781639448000,-1000.0,0.00027397,2]
[425261193,1781639448000,-1000.0,0.00027397,2]
[425261195,1781639448000,-1000.0,0.00027397,2]
[425261205,1781639448000,-1000.0,0.00027397,2]
[425261194,1781639448000,-1000.0,0.00027397,2]
[425261200,1781639448000,-1000.0,0.00027397,2]
[425261202,1781639448000,-1000.0,0.00027397,2]
[425261197,1781639448000,-1000.0,0.00027397,2]
[425261201,1781639448000,-1000.0,0.00027397,2]
[425261203,1781639448000,-1000.0,0.00027397,2]
[425261204,1781639448000,-1000.0,0.00027397,2]
[425261196,1781639448000,-1000.0,0.00027397,2]
[425261199,1781639448000,-1000.0,0.00027397,2]
[425261198,1781639448000,-1000.0,0.00027397,2]
[425261190,1781639448000,-1000.0,0.00027397,2]
[425261177,1781639448000,-1000.0,0.00027397,2]
[425261155,1781639448000,-1000.0,0.00027397,2]
[425261180,1781639448000,-1000.0,0.00027397,2]
[425261154,1781639448000,-1000.0,0.00027397,2]
[425261146,1781639448000,-300.0,0.00027397,2]
[425261148,1781639448000,-500.0,0.00027397,15]
[425261150,1781639448000,-500.0,0.00027397,15]
[425261151,1781639448000,-500.0,0.00027397,15]
[425261149,1781639448000,-500.0,0.00027397,15]
[425261152,1781639448000,-500.0,0.00027397,15]
[425261171,1781639448000,-1000.0,0.00027397,2]
[425261159,1781639448000,-1000.0,0.00027397,2]
[425261161,1781639448000,-1000.0,0.00027397,2]
[425261157,1781639448000,-1000.0,0.00027397,2]
[425261158,1781639448000,-1000.0,0.00027397,2]
[425261160,1781639448000,-1000.0,0.00027397,2]
[425261156,1781639448000,-1000.0,0.00027397,2]
[425261163,1781639448000,-1000.0,0.00027397,2]
[425261162,1781639448000,-1000.0,0.00027397,2]
[425261173,1781639448000,-1000.0,0.00027397,2]
[425261172,1781639448000,-1000.0,0.00027397,2]
[425261174,1781639448000,-1000.0,0.00027397,2]
[425261169,1781639448000,-1000.0,0.00027397,2]
[425261176,1781639448000,-1000.0,0.00027397,2]
[425261170,1781639448000,-1000.0,0.00027397,2]
[425261165,1781639448000,-1000.0,0.00027397,2]
[425261168,1781639448000,-1000.0,0.00027397,2]
[425261164,1781639448000,-1000.0,0.00027397,2]
[425261166,1781639448000,-1000.0,0.00027397,2]
[425261167,1781639448000,-1000.0,0.00027397,2]
[425261175,1781639448000,-1000.0,0.00027397,2]
[425261254,1781639449000,-500.28796441,0.00027397,2]
[425261245,1781639449000,-1000.0,0.00027397,2]
[425261255,1781639449000,-500.0,0.00027397,2]
[425261244,1781639449000,-1000.0,0.00027397,2]
[425261237,1781639449000,-1000.0,0.00027397,2]
[425261240,1781639449000,-1000.0,0.00027397,2]
[425261232,1781639449000,-1000.0,0.00027397,2]
[425261233,1781639449000,-1000.0,0.00027397,2]
[425261231,1781639449000,-1000.0,0.00027397,2]
[425261235,1781639449000,-1000.0,0.00027397,2]
[425261242,1781639449000,-1000.0,0.00027397,2]
[425261246,1781639449000,-1000.0,0.00027397,2]
[425261265,1781639449000,-876.603178,0.00027397,2]
[425261249,1781639449000,-1000.0,0.00027397,2]
[425261253,1781639449000,-1000.0,0.00027397,2]
[425261251,1781639449000,-1000.0,0.00027397,2]
[425261243,1781639449000,-1000.0,0.00027397,2]
[425261252,1781639449000,-1000.0,0.00027397,2]
[425261250,1781639449000,-1000.0,0.00027397,2]
[425261248,1781639449000,-1000.0,0.00027397,2]
[425261256,1781639449000,-500.0,0.00027397,2]
[425261257,1781639449000,-500.0,0.00027397,2]
[425261262,1781639449000,-1500.0,0.00027397,2]
[425261259,1781639449000,-500.0,0.00027397,2]
[425261258,1781639449000,-500.0,0.00027397,2]
[425261239,1781639449000,-1000.0,0.00027397,2]
[425261247,1781639449000,-1000.0,0.00027397,2]
[425261238,1781639449000,-1000.0,0.00027397,2]
[425261218,1781639449000,-1000.0,0.00027397,2]
[425261241,1781639449000,-1000.0,0.00027397,2]
[425261260,1781639449000,-490.8325641,0.00027397,2]
[425261206,1781639449000,-1000.0,0.00027397,2]
[425261208,1781639449000,-1000.0,0.00027397,2]
[425261210,1781639449000,-1000.0,0.00027397,2]
[425261207,1781639449000,-1000.0,0.00027397,2]
[425261209,1781639449000,-1000.0,0.00027397,2]
[425261217,1781639449000,-1000.0,0.00027397,2]
[425261215,1781639449000,-1000.0,0.00027397,2]
[425261211,1781639449000,-1000.0,0.00027397,2]
[425261213,1781639449000,-1000.0,0.00027397,2]
[425261212,1781639449000,-1000.0,0.00027397,2]
[425261214,1781639449000,-1000.0,0.00027397,2]
[425261234,1781639449000,-1000.0,0.00027397,2]
[425261216,1781639449000,-1000.0,0.00027397,2]
[425261229,1781639449000,-1000.0,0.00027397,2]
[425261221,1781639449000,-1000.0,0.00027397,2]
[425261222,1781639449000,-1000.0,0.00027397,2]
[425261220,1781639449000,-1000.0,0.00027397,2]
[425261223,1781639449000,-1000.0,0.00027397,2]
[425261224,1781639449000,-1000.0,0.00027397,2]
[425261225,1781639449000,-1000.0,0.00027397,2]
[425261226,1781639449000,-1000.0,0.00027397,2]
[425261228,1781639449000,-1000.0,0.00027397,2]
[425261227,1781639449000,-1000.0,0.00027397,2]
[425261230,1781639449000,-1000.0,0.00027397,2]
[425261236,1781639449000,-1000.0,0.00027397,2]
[425261219,1781639449000,-1000.0,0.00027397,2]
[425261264,1781639449000,-876.603178,0.00027397,2]
[425261269,1781639449000,-876.603178,0.00027397,2]
[425261263,1781639449000,-581.37258776,0.00027397,2]
[425261296,1781639449000,-1275.729008,0.00027397,2]
[425261299,1781639449000,-1275.729008,0.00027397,2]
[425261297,1781639449000,-1275.729008,0.00027397,2]
[425261300,1781639449000,-1275.729008,0.00027397,2]
[425261303,1781639449000,-1275.729008,0.00027397,2]
[425261301,1781639449000,-1275.729008,0.00027397,2]
[425261311,1781639449000,-399.656603,0.00027397,2]
[425261304,1781639449000,-1275.729008,0.00027397,2]
[425261302,1781639449000,-1275.729008,0.00027397,2]
[425261305,1781639449000,-1275.729,0.00027397,2]
[425261310,1781639449000,-399.656603,0.00027397,2]
[425261309,1781639449000,-399.656603,0.00027397,2]
[425261294,1781639449000,-1275.729008,0.00027397,2]
[425261307,1781639449000,-399.656603,0.00027397,2]
[425261306,1781639449000,-399.656603,0.00027397,2]
[425261313,1781639449000,-399.656603,0.00027397,2]
[425261316,1781639449000,-399.656603,0.00027397,2]
[425261312,1781639449000,-399.656603,0.00027397,2]
[425261314,1781639449000,-399.656603,0.00027397,2]
[425261315,1781639449000,-399.656603,0.00027397,2]
[425261266,1781639449000,-876.603178,0.00027397,2]
[425261318,1781639449000,-399.656603,0.00027397,2]
[425261319,1781639449000,-399.656603,0.00027397,2]
[425261322,1781639449000,-399.656603,0.00027397,2]
[425261321,1781639449000,-399.656603,0.00027397,2]
[425261320,1781639449000,-399.656603,0.00027397,2]
[425261308,1781639449000,-399.656603,0.00027397,2]
[425261293,1781639449000,-1275.729008,0.00027397,2]
[425261317,1781639449000,-399.656603,0.00027397,2]
[425261298,1781639449000,-1275.729008,0.00027397,2]
[425261295,1781639449000,-1275.729008,0.00027397,2]
[425261261,1781639449000,-605.65135585,0.00027397,2]
[425261267,1781639449000,-876.603178,0.00027397,2]
[425261268,1781639449000,-876.603178,0.00027397,2]
[425261273,1781639449000,-876.603178,0.00027397,2]
[425261272,1781639449000,-876.603178,0.00027397,2]
[425261274,1781639449000,-876.603178,0.00027397,2]
[425261275,1781639449000,-876.603178,0.00027397,2]
[425261271,1781639449000,-876.603178,0.00027397,2]
[425261277,1781639449000,-151.0,0.00027397,2]
[425261276,1781639449000,-300.0,0.00027397,2]
[425261279,1781639449000,-151.0,0.00027397,2]
[425261278,1781639449000,-151.0,0.00027397,2]
[425261270,1781639449000,-876.603178,0.00027397,2]
[425261280,1781639449000,-151.0,0.00027397,2]
[425261284,1781639449000,-151.0,0.00027397,2]
[425261292,1781639449000,-1275.729008,0.00027397,2]
[425261289,1781639449000,-1275.729008,0.00027397,2]
[425261287,1781639449000,-1275.729008,0.00027397,2]
[425261285,1781639449000,-299.347245,0.00027397,2]
[425261290,1781639449000,-1275.729008,0.00027397,2]
[425261283,1781639449000,-151.0,0.00027397,2]
[425261281,1781639449000,-254.13826,0.00027397,2]
[425261288,1781639449000,-1275.729008,0.00027397,2]
[425261282,1781639449000,-1000.0,0.00027397,20]
[425261286,1781639449000,-1275.729008,0.00027397,2]
[425261291,1781639449000,-1275.729008,0.00027397,2]
[425261349,1781639450000,-242.15909246,0.00027466,2]
[425261348,1781639450000,-307.32373026,0.00027466,2]
[425261356,1781639450000,-500.0,0.00027581,2]
[425261351,1781639450000,-151.0,0.00027466,2]
[425261347,1781639450000,-154.51081299,0.00027466,2]
[425261352,1781639450000,-500.0,0.000275,7]
[425261357,1781639450000,-500.0,0.00027581,2]
[425261354,1781639450000,-500.0,0.00027581,2]
[425261355,1781639450000,-500.0,0.00027581,2]
[425261353,1781639450000,-1716.0,0.000275,7]
[425261362,1781639450000,-215.263557,0.00027615,7]
[425261358,1781639450000,-360.55219836,0.00027581,2]
[425261369,1781639450000,-1362.15111286,0.00027661,2]
[425261367,1781639450000,-237.964127,0.00027615,7]
[425261366,1781639450000,-237.964127,0.00027615,7]
[425261363,1781639450000,-362.718963,0.00027615,7]
[425261360,1781639450000,-362.718963,0.00027615,7]
[425261361,1781639450000,-362.718963,0.00027615,7]
[425261364,1781639450000,-362.718959,0.00027615,7]
[425261350,1781639450000,-270.0455652,0.00027466,2]
[425261365,1781639450000,-237.964127,0.00027615,7]
[425261359,1781639450000,-150.0,0.00027581,2]
[425261346,1781639450000,-5218.67,0.000274,2]
[425261330,1781639450000,-151.0,0.00027397,2]
[425261339,1781639450000,-1001.15965791,0.000274,7]
[425261368,1781639450000,-237.964135,0.00027615,7]
[425261323,1781639450000,-399.656603,0.00027397,2]
[425261324,1781639450000,-399.656603,0.00027397,2]
[425261333,1781639450000,-31010.66,0.00027397,10]
[425261325,1781639450000,-399.656599,0.00027397,2]
[425261326,1781639450000,-151.0,0.00027397,2]
[425261334,1781639450000,-846.480728,0.00027397,2]
[425261329,1781639450000,-151.0,0.00027397,2]
[425261327,1781639450000,-151.0,0.00027397,2]
[425261332,1781639450000,-846.480728,0.00027397,2]
[425261331,1781639450000,-151.0,0.00027397,2]
[425261328,1781639450000,-151.0,0.00027397,2]
[425261342,1781639450000,-5218.67,0.000274,2]
[425261344,1781639450000,-5218.67,0.000274,2]
[425261341,1781639450000,-2886.11,0.000274,7]
[425261340,1781639450000,-2160.63,0.000274,7]
[425261343,1781639450000,-5218.67,0.000274,2]
[425261345,1781639450000,-5218.67,0.000274,2]
[425261335,1781639450000,-846.480728,0.00027397,2]
[425261337,1781639450000,-846.480728,0.00027397,2]
[425261338,1781639450000,-174.13185789,0.00027397,7]
[425261336,1781639450000,-846.480728,0.00027397,2]
[425261373,1781639450000,-186.29357045,0.00027855,14]
[425261382,1781639450000,-275.934024,0.00028,7]
[425261376,1781639450000,-2884.75459676,0.00027927,2]
[425261394,1781639450000,-251.11897888,0.00028014,2]
[425261402,1781639450000,-1108.14,0.00028219,7]
[425261397,1781639450000,-2160.63,0.000281,7]
[425261398,1781639450000,-2886.11,0.000281,7]
[425261399,1781639450000,-593.0,0.00028205,3]
[425261400,1781639450000,-1126.37,0.00028219,7]
[425261405,1781639450000,-397.91495425,0.00028359,7]
[425261408,1781639450000,-193.10870572,0.00028359,7]
[425261404,1781639450000,-170.52462909,0.00028359,7]
[425261406,1781639450000,-181.5650421,0.00028359,7]
[425261410,1781639450000,-350.06840689,0.00028359,7]
[425261409,1781639450000,-303.23228983,0.00028359,2]